[Event "20th Rochefort Chess Festival - Masters"]
[Site "Rochefort, France"]
[Date "2022.02.15"]
[Round "6.2"]
[White "Laurent-Paoli, Pierre"]
[Black "Larkin, Vladyslav"]
[Result "1/2-1/2"]
[TimeControl "1h30 + [30'']"]
[WhiteElo "2483"]
[BlackElo "2399"]

1. d4 {[%clk 01:30:59]} d6 {[%clk 01:19:19]} {[%emt 00:11:42]} 2. e4 {[%clk
01:27:21]} {[%emt 00:04:07]} Nf6 {[%clk 01:19:34]} {[%emt 00:00:15]} 3. Nc3
{[%clk 01:27:45]} {[%emt 00:00:06]} Nbd7 {[%clk 01:19:44]} {[%emt 00:00:20]} 4.
g4 {[%clk 01:26:30]} {[%emt 00:01:45]} h6 {[%clk 01:17:16]} {[%emt 00:02:58]} 5.
h3 {[%clk 01:23:23]} {[%emt 00:03:37]} e5 {[%clk 01:12:30]} {[%emt 00:05:17]} 6.
Nge2 {[%clk 01:07:36]} {[%emt 00:16:16]} c6 {[%clk 01:12:50]} {[%emt 00:00:11]}
7. a4 {[%clk 01:02:32]} {[%emt 00:05:33]} b6 {[%clk 01:09:43]} {[%emt
00:03:37]} 8. Bg2 {[%clk 01:02:13]} {[%emt 00:00:48]} a6 {[%clk 01:09:47]}
{[%emt 00:00:27]} 9. O-O {[%clk 01:01:23]} {[%emt 00:01:20]} Bb7 {[%clk
01:10:15]} {[%emt 00:00:02]} 10. Be3 {[%clk 00:53:59]} {[%emt 00:07:53]} b5
{[%clk 01:10:19]} {[%emt 00:00:27]} 11. axb5 {[%clk 00:53:50]} {[%emt
00:00:40]} axb5 {[%clk 01:08:03]} {[%emt 00:02:46]} 12. Ng3 {[%clk 00:52:54]}
{[%emt 00:01:25]} b4 {[%clk 00:59:51]} {[%emt 00:08:43]} 13. Nce2 {[%clk
00:53:02]} {[%emt 00:00:22]} g6 {[%clk 00:58:24]} {[%emt 00:01:57]} 14. Qd2
{[%clk 00:50:21]} {[%emt 00:03:11]} c5 {[%clk 00:57:54]} {[%emt 00:01:00]} 15.
c3 {[%clk 00:45:25]} {[%emt 00:05:26]} bxc3 {[%clk 00:56:18]} {[%emt 00:02:07]}
16. bxc3 {[%clk 00:45:44]} {[%emt 00:00:10]} Bg7 {[%clk 00:53:25]} {[%emt
00:03:22]} 17. f4 {[%clk 00:37:59]} {[%emt 00:08:15]} exd4 {[%clk 00:50:17]}
{[%emt 00:03:38]} 18. cxd4 {[%clk 00:38:17]} {[%emt 00:00:13]} Rxa1 {[%clk
00:49:34]} {[%emt 00:01:13]} 19. Rxa1 {[%clk 00:38:42]} {[%emt 00:00:04]} cxd4
{[%clk 00:50:02]} {[%emt 00:00:03]} 20. Bxd4 {[%clk 00:37:36]} {[%emt
00:01:36]} O-O {[%clk 00:49:30]} {[%emt 00:01:02]} 21. Qb2 {[%clk 00:33:18]}
{[%emt 00:04:49]} Bc8 {[%clk 00:37:37]} {[%emt 00:12:24]} 22. Rd1 {[%clk
00:17:10]} {[%emt 00:16:38]} Qa5 {[%clk 00:30:54]} {[%emt 00:07:13]} 23. Bc3
{[%clk 00:17:34]} {[%emt 00:00:05]} Qc5+ {[%clk 00:30:29]} {[%emt 00:00:55]} 24.
Bd4 {[%clk 00:16:36]} {[%emt 00:01:28]} Qa5 {[%clk 00:29:36]} {[%emt 00:01:23]}
25. Kh1 {[%clk 00:16:51]} {[%emt 00:00:15]} Qa6 {[%clk 00:29:01]} {[%emt
00:01:05]} 26. Nc3 {[%clk 00:13:10]} {[%emt 00:04:10]} Bb7 {[%clk 00:28:49]}
{[%emt 00:00:43]} 27. g5 {[%clk 00:07:54]} {[%emt 00:05:47]} hxg5 {[%clk
00:29:12]} {[%emt 00:00:06]} 28. fxg5 {[%clk 00:08:22]} {[%emt 00:00:02]} Ne8
{[%clk 00:29:22]} {[%emt 00:00:20]} 29. Bxg7 {[%clk 00:07:22]} {[%emt
00:01:30]} Nxg7 {[%clk 00:29:47]} {[%emt 00:00:04]} 30. Nb5 {[%clk 00:06:56]}
{[%emt 00:00:56]} Rb8 {[%clk 00:23:29]} {[%emt 00:06:48]} 31. Nxd6 {[%clk
00:02:55]} {[%emt 00:04:31]} Bxe4 {[%clk 00:23:25]} {[%emt 00:00:34]} 32. Qf2
{[%clk 00:03:10]} {[%emt 00:00:15]} Bxg2+ {[%clk 00:23:49]} {[%emt 00:00:06]}
33. Qxg2 {[%clk 00:03:18]} {[%emt 00:00:21]} Ne5 {[%clk 00:22:10]} {[%emt
00:02:09]} 34. Nde4 {[%clk 00:03:04]} {[%emt 00:00:44]} Ne6 {[%clk 00:21:41]}
{[%emt 00:00:59]} 35. Nf6+ {[%clk 00:03:05]} {[%emt 00:00:29]} Kg7 {[%clk
00:22:05]} {[%emt 00:00:06]} 36. Qe4 {[%clk 00:02:06]} {[%emt 00:01:30]} Qb7
{[%clk 00:18:10]} {[%emt 00:04:25]} 37. Nd5 {[%clk 00:02:08]} {[%emt 00:00:28]}
Qb2 {[%clk 00:18:33]} {[%emt 00:00:07]} 38. Re1 {[%clk 00:01:42]} {[%emt
00:00:56]} Rb3 {[%clk 00:17:48]} {[%emt 00:01:14]} 39. Qxe5+ {[%clk 00:00:55]}
{[%emt 00:01:18]} Qxe5 {[%clk 00:18:15]} {[%emt 00:00:04]} 40. Rxe5 {[%clk
00:01:22]} {[%emt 00:00:02]} Rxg3 {[%clk 00:18:40]} {[%emt 00:00:05]} 41. Kh2
{[%clk 00:01:30]} {[%emt 00:00:23]} Rxg5 {[%clk 00:19:03]} {[%emt 00:00:06]} 42.
Rxg5 {[%clk 00:01:57]} {[%emt 00:00:03]} Nxg5 {[%clk 00:19:28]} {[%emt
00:00:06]} 43. Kg3 {[%clk 00:02:01]} {[%emt 00:00:26]} Ne6 {[%clk 00:18:55]}
{[%emt 00:01:03]} 44. h4 {[%clk 00:02:08]} {[%emt 00:00:23]} Nd4 {[%clk
00:18:29]} {[%emt 00:00:56]} 45. Kg4 {[%clk 00:01:40]} {[%emt 00:00:58]} f5+
{[%clk 00:18:41]} {[%emt 00:00:18]} 46. Kf4 {[%clk 00:01:31]} {[%emt 00:00:38]}
Kh6 {[%clk 00:18:50]} {[%emt 00:00:22]} 47. Nf6 {[%clk 00:01:04]} {[%emt
00:00:57]} Ne6+ {[%clk 00:19:13]} {[%emt 00:00:07]} 48. Ke5 {[%clk 00:01:11]}
{[%emt 00:00:23]} Ng7 {[%clk 00:18:50]} {[%emt 00:00:52]} 49. Ng8+ {[%clk
00:01:06]} {[%emt 00:00:36]} Kh5 {[%clk 00:18:44]} {[%emt 00:00:36]} 50. Ne7
{[%clk 00:01:32]} {[%emt 00:00:04]} Ne6 {[%clk 00:17:18]} {[%emt 00:01:56]} 51.
Nxf5 {[%clk 00:01:53]} {[%emt 00:00:10]} 1/2-1/2

[Event "20th Rochefort Chess Festival - Masters"]
[Site "Rochefort, France"]
[Date "2022.02.15"]
[Round "6.3"]
[White "Fecker, Noah"]
[Black "Dalaud, Dorian"]
[Result "1-0"]
[TimeControl "1h30 + [30'']"]
[WhiteElo "2328"]
[BlackElo "2272"]

1. e4 {[%clk 01:29:46]} {[%emt 00:01:12]} c5 {[%clk 01:25:24]} {[%emt
00:05:36]} 2. Nf3 {[%clk 01:30:10]} {[%emt 00:00:06]} Nc6 {[%clk 01:25:33]}
{[%emt 00:00:22]} 3. Bb5 {[%clk 01:30:33]} {[%emt 00:00:07]} g6 {[%clk
01:25:57]} {[%emt 00:00:06]} 4. O-O {[%clk 01:30:47]} {[%emt 00:00:16]} Bg7
{[%clk 01:25:46]} {[%emt 00:00:40]} 5. c3 {[%clk 01:30:50]} {[%emt 00:00:27]}
Nf6 {[%clk 01:25:11]} {[%emt 00:01:05]} 6. Re1 {[%clk 01:30:20]} {[%emt
00:01:00]} O-O {[%clk 01:24:55]} {[%emt 00:00:46]} 7. d4 {[%clk 01:30:26]}
{[%emt 00:00:24]} d5 {[%clk 01:24:24]} {[%emt 00:01:01]} 8. e5 {[%clk
01:30:40]} {[%emt 00:00:16]} Ne4 {[%clk 01:24:47]} {[%emt 00:00:07]} 9. Bxc6
{[%clk 01:30:30]} {[%emt 00:00:40]} bxc6 {[%clk 01:25:15]} {[%emt 00:00:02]} 10.
Be3 {[%clk 01:30:24]} {[%emt 00:00:35]} cxd4 {[%clk 01:18:28]} {[%emt
00:07:17]} 11. cxd4 {[%clk 01:29:48]} {[%emt 00:01:06]} f6 {[%clk 01:18:52]}
{[%emt 00:00:07]} 12. exf6 {[%clk 01:19:59]} {[%emt 00:10:19]} exf6 {[%clk
01:18:02]} {[%emt 00:01:20]} 13. Nbd2 {[%clk 01:13:34]} {[%emt 00:06:56]} Rb8
{[%clk 01:09:20]} {[%emt 00:09:12]} 14. Qc1 {[%clk 01:09:07]} {[%emt 00:04:57]}
Nxd2 {[%clk 00:54:25]} {[%emt 00:15:26]} 15. Nxd2 {[%clk 01:05:59]} {[%emt
00:03:37]} Bf5 {[%clk 00:52:14]} {[%emt 00:02:41]} 16. Nb3 {[%clk 01:03:16]}
{[%emt 00:03:13]} Qb6 {[%clk 00:46:41]} {[%emt 00:06:03]} 17. Bf4 {[%clk
00:59:56]} {[%emt 00:03:49]} Rbd8 {[%clk 00:46:59]} {[%emt 00:00:12]} 18. Re7
{[%clk 00:48:08]} {[%emt 00:12:18]} Rd7 {[%clk 00:40:14]} {[%emt 00:07:16]} 19.
Re3 {[%clk 00:46:00]} {[%emt 00:02:37]} Rc8 {[%clk 00:32:43]} {[%emt 00:08:01]}
20. Nc5 {[%clk 00:41:20]} {[%emt 00:05:09]} Rf7 {[%clk 00:32:45]} {[%emt
00:00:28]} 21. Rb3 {[%clk 00:40:37]} {[%emt 00:01:13]} Qa5 {[%clk 00:31:47]}
{[%emt 00:01:28]} 22. Nb7 {[%clk 00:40:13]} {[%emt 00:00:53]} Qa4 {[%clk
00:26:46]} {[%emt 00:05:33]} 23. Nd6 {[%clk 00:40:23]} {[%emt 00:00:19]} Qxd4
{[%clk 00:26:47]} {[%emt 00:00:30]} 24. Nxc8 {[%clk 00:39:03]} {[%emt
00:01:50]} Bxc8 {[%clk 00:27:00]} {[%emt 00:00:17]} 25. Rb8 {[%clk 00:38:56]}
{[%emt 00:00:36]} Rf8 {[%clk 00:27:00]} {[%emt 00:00:31]} 26. Bd6 {[%clk
00:39:01]} {[%emt 00:00:24]} Rd8 {[%clk 00:26:06]} {[%emt 00:01:25]} 27. Qxc6
{[%clk 00:38:24]} {[%emt 00:01:06]} Qc4 {[%clk 00:24:17]} {[%emt 00:02:19]} 28.
Rc1 {[%clk 00:38:02]} {[%emt 00:00:51]} 1-0

[Event "20th Rochefort Chess Festival - Masters"]
[Site "Rochefort, France"]
[Date "2022.02.15"]
[Round "6.1"]
[White "Galperin, Platon"]
[Black "Bauer, Christian"]
[Result "1-0"]
[TimeControl "1h30 + [30'']"]
[WhiteElo "2522"]
[BlackElo "2613"]

1. d4 {[%clk 01:19:40]} {[%emt 00:11:19]} Nf6 {[%clk 01:30:27]} {[%emt
00:00:33]} 2. c4 {[%clk 01:20:05]} {[%emt 00:00:05]} e6 {[%clk 01:30:23]}
{[%emt 00:00:35]} 3. Nf3 {[%clk 01:20:30]} {[%emt 00:00:06]} b6 {[%clk
01:27:00]} {[%emt 00:03:53]} 4. g3 {[%clk 01:20:49]} {[%emt 00:00:10]} Bb7
{[%clk 01:26:45]} {[%emt 00:00:45]} 5. Bg2 {[%clk 01:21:13]} {[%emt 00:00:06]}
g6 {[%clk 01:27:09]} {[%emt 00:00:07]} 6. O-O {[%clk 01:20:44]} {[%emt
00:00:58]} Bg7 {[%clk 01:27:34]} {[%emt 00:00:05]} 7. Qc2 {[%clk 01:21:00]}
{[%emt 00:00:15]} O-O {[%clk 01:25:54]} {[%emt 00:02:10]} 8. Nc3 {[%clk
01:21:03]} {[%emt 00:00:27]} d5 {[%clk 01:24:50]} {[%emt 00:01:34]} 9. cxd5
{[%clk 01:18:06]} {[%emt 00:03:27]} exd5 {[%clk 01:22:14]} {[%emt 00:03:06]} 10.
Bg5 {[%clk 01:00:18]} {[%emt 00:18:17]} Nc6 {[%clk 01:17:52]} {[%emt 00:04:52]}
11. Rad1 {[%clk 00:59:46]} {[%emt 00:01:02]} Re8 {[%clk 01:11:12]} {[%emt
00:07:11]} 12. Rfe1 {[%clk 00:53:57]} {[%emt 00:06:19]} Ne7 {[%clk 01:03:22]}
{[%emt 00:08:20]} 13. Ne5 {[%clk 00:51:27]} {[%emt 00:03:00]} Nh5 {[%clk
00:41:56]} {[%emt 00:21:56]} 14. e4 {[%clk 00:38:26]} {[%emt 00:13:31]} c6
{[%clk 00:39:42]} {[%emt 00:02:44]} 15. Nxc6 {[%clk 00:24:23]} {[%emt
00:14:33]} Bxc6 {[%clk 00:40:11]} {[%emt 00:00:01]} 16. exd5 {[%clk 00:24:44]}
{[%emt 00:00:08]} Bb7 {[%clk 00:39:18]} {[%emt 00:01:23]} 17. d6 {[%clk
00:24:47]} {[%emt 00:00:27]} Qxd6 {[%clk 00:39:43]} {[%emt 00:00:05]} 18. Bxb7
{[%clk 00:25:09]} {[%emt 00:00:08]} Rad8 {[%clk 00:38:44]} {[%emt 00:01:29]} 19.
Qa4 {[%clk 00:22:13]} {[%emt 00:03:26]} h6 {[%clk 00:37:52]} {[%emt 00:01:23]}
20. Bc1 {[%clk 00:22:25]} {[%emt 00:00:17]} Rf8 {[%clk 00:35:56]} {[%emt
00:02:27]} 21. Qxa7 {[%clk 00:17:47]} {[%emt 00:05:08]} Qd7 {[%clk 00:28:05]}
{[%emt 00:08:21]} 22. Qa6 {[%clk 00:17:44]} {[%emt 00:00:33]} Nf5 {[%clk
00:28:18]} {[%emt 00:00:17]} 23. Bg2 {[%clk 00:10:55]} {[%emt 00:07:18]} Nxd4
{[%clk 00:27:17]} {[%emt 00:01:32]} 24. Qxb6 {[%clk 00:10:59]} {[%emt
00:00:27]} Qf5 {[%clk 00:24:23]} {[%emt 00:03:24]} 25. Qb7 {[%clk 00:09:51]}
{[%emt 00:01:37]} Nf6 {[%clk 00:23:42]} {[%emt 00:01:11]} 26. Qc7 {[%clk
00:06:44]} {[%emt 00:03:38]} Ne6 {[%clk 00:15:45]} {[%emt 00:08:27]} 27. Qe5
{[%clk 00:06:34]} {[%emt 00:00:39]} Qxf2+ {[%clk 00:14:41]} {[%emt 00:01:34]}
28. Kxf2 {[%clk 00:07:02]} {[%emt 00:00:01]} Ng4+ {[%clk 00:15:09]} {[%emt
00:00:03]} 29. Kf1 {[%clk 00:07:07]} {[%emt 00:00:25]} Nxe5 {[%clk 00:14:34]}
{[%emt 00:01:05]} 30. Bxh6 {[%clk 00:06:06]} {[%emt 00:01:31]} Rxd1 {[%clk
00:12:06]} {[%emt 00:02:58]} 31. Nxd1 {[%clk 00:06:31]} {[%emt 00:00:04]} Nd3
{[%clk 00:12:26]} {[%emt 00:00:11]} 32. Bxg7 {[%clk 00:06:30]} {[%emt
00:00:30]} Kxg7 {[%clk 00:12:55]} {[%emt 00:00:01]} 33. Re3 {[%clk 00:04:41]}
{[%emt 00:02:18]} Rd8 {[%clk 00:12:44]} {[%emt 00:00:41]} 34. Be4 {[%clk
00:04:49]} {[%emt 00:00:22]} Ne5 {[%clk 00:08:17]} {[%emt 00:04:55]} 35. Nc3
{[%clk 00:04:43]} {[%emt 00:00:37]} Nc4 {[%clk 00:07:31]} {[%emt 00:01:17]} 36.
Rd3 {[%clk 00:04:41]} {[%emt 00:00:31]} Rc8 {[%clk 00:06:24]} {[%emt 00:01:38]}
37. Na4 {[%clk 00:03:49]} {[%emt 00:01:21]} Ne5 {[%clk 00:03:41]} {[%emt
00:03:13]} 38. Rc3 {[%clk 00:04:16]} {[%emt 00:00:03]} Rh8 {[%clk 00:02:59]}
{[%emt 00:01:11]} 39. Nc5 {[%clk 00:03:49]} {[%emt 00:00:57]} Nd4 {[%clk
00:02:39]} {[%emt 00:00:50]} 40. h4 {[%clk 00:03:25]} {[%emt 00:00:54]} f5
{[%clk 00:02:42]} {[%emt 00:00:28]} 41. Bg2 {[%clk 00:02:16]} {[%emt 00:01:37]}
Re8 {[%clk 00:02:05]} {[%emt 00:01:08]} 42. Nb3 {[%clk 00:01:48]} {[%emt
00:00:59]} Nb5 {[%clk 00:01:36]} {[%emt 00:00:58]} 43. Re3 {[%clk 00:02:05]}
{[%emt 00:00:12]} Nd6 {[%clk 00:01:31]} {[%emt 00:00:36]} 44. Bd5 {[%clk
00:01:58]} {[%emt 00:00:36]} Ne4 {[%clk 00:00:49]} {[%emt 00:01:13]} 45. Bxe4
{[%clk 00:01:44]} {[%emt 00:00:43]} Ng4 {[%clk 00:00:45]} {[%emt 00:00:34]} 46.
Re2 {[%clk 00:02:03]} {[%emt 00:00:11]} fxe4 {[%clk 00:01:11]} {[%emt
00:00:04]} 47. Nc5 {[%clk 00:01:49]} {[%emt 00:00:44]} e3 {[%clk 00:01:38]}
{[%emt 00:00:04]} 48. Kg2 {[%clk 00:02:06]} {[%emt 00:00:12]} Kf6 {[%clk
00:01:31]} {[%emt 00:00:38]} 49. Kf3 {[%clk 00:00:53]} {[%emt 00:01:42]} Kf5
{[%clk 00:01:18]} {[%emt 00:00:44]} 50. Nb3 {[%clk 00:00:38]} {[%emt 00:00:44]}
Rd8 {[%clk 00:00:50]} {[%emt 00:00:58]} 51. Rc2 {[%clk 00:00:53]} {[%emt
00:00:15]} Ne5+ {[%clk 00:01:06]} {[%emt 00:00:16]} 52. Kxe3 {[%clk 00:00:40]}
{[%emt 00:00:42]} Rd3+ {[%clk 00:01:28]} {[%emt 00:00:08]} 53. Kf2 {[%clk
00:00:39]} {[%emt 00:00:30]} Ng4+ {[%clk 00:01:55]} {[%emt 00:00:04]} 54. Ke2
{[%clk 00:00:44]} {[%emt 00:00:24]} Rxg3 {[%clk 00:02:11]} {[%emt 00:00:14]} 55.
Rc5+ {[%clk 00:01:05]} {[%emt 00:00:08]} Kf4 {[%clk 00:00:42]} {[%emt
00:01:59]} 56. Rc4+ {[%clk 00:01:22]} {[%emt 00:00:13]} Ke5 {[%clk 00:00:48]}
{[%emt 00:00:23]} 57. Rc3 {[%clk 00:01:31]} {[%emt 00:00:22]} Rg1 {[%clk
00:00:39]} {[%emt 00:00:40]} 58. Rc1 {[%clk 00:01:36]} {[%emt 00:00:24]} Rg3
{[%clk 00:00:59]} {[%emt 00:00:10]} 59. Nd2 {[%clk 00:00:32]} {[%emt 00:01:34]}
Re3+ {[%clk 00:00:37]} {[%emt 00:00:52]} 60. Kd1 {[%clk 00:00:43]} {[%emt
00:00:18]} Rh3 {[%clk 00:00:37]} {[%emt 00:00:30]} 61. Rc3 {[%clk 00:00:55]}
{[%emt 00:00:18]} Rh1+ {[%clk 00:00:37]} {[%emt 00:00:30]} 62. Kc2 {[%clk
00:01:24]} {[%emt 00:00:01]} Kd5 {[%clk 00:00:32]} {[%emt 00:00:35]} 63. Rd3+
{[%clk 00:01:23]} {[%emt 00:00:30]} Kc6 {[%clk 00:00:32]} {[%emt 00:00:30]} 64.
Rg3 {[%clk 00:01:11]} {[%emt 00:00:41]} Rxh4 {[%clk 00:00:36]} {[%emt
00:00:27]} 65. Nf3 {[%clk 00:01:20]} {[%emt 00:00:21]} Ne3+ {[%clk 00:01:03]}
{[%emt 00:00:04]} 66. Kd3 {[%clk 00:01:21]} {[%emt 00:00:28]} Rb4 {[%clk
00:01:24]} {[%emt 00:00:08]} 67. Rxg6+ {[%clk 00:00:37]} {[%emt 00:01:16]} Kc5
{[%clk 00:01:53]} {[%emt 00:00:01]} 68. Kxe3 {[%clk 00:00:35]} {[%emt
00:00:32]} Rxb2 {[%clk 00:02:22]} 69. Ra6 {[%emt 00:01:36]} Rb4 {[%emt
00:00:03]} 70. Rg6 {[%emt 00:01:30]} 1-0


[ePGN "0.1;DGT LiveChess/2.2.5"]

[Event "20th Rochefort Chess Festival - Masters"]
[Site "Rochefort, France"]
[Date "2022.02.16"]
[Round "7.2"]
[White "Fecker, Noah"]
[Black "Laurent-Paoli, Pierre"]
[Result "1/2-1/2"]
[TimeControl "1h30 + [30'']"]
[WhiteElo "2328"]
[BlackElo "2483"]

1. e4 {[%clk 01:27:20]} {[%emt 00:03:39]} Nc6 {[%clk 01:30:22]} {[%emt
00:00:39]} 2. d4 {[%clk 01:27:40]} {[%emt 00:00:09]} d5 {[%clk 01:30:43]}
{[%emt 00:00:09]} 3. e5 {[%clk 01:28:04]} {[%emt 00:00:07]} f6 {[%clk
01:31:05]} {[%emt 00:00:07]} 4. f4 {[%clk 01:27:49]} {[%emt 00:00:45]} Nh6
{[%clk 01:31:30]} {[%emt 00:00:05]} 5. Nf3 {[%clk 01:27:27]} {[%emt 00:00:52]}
Bf5 {[%clk 01:31:48]} {[%emt 00:00:12]} 6. c3 {[%clk 01:26:36]} {[%emt
00:01:21]} e6 {[%clk 01:31:39]} {[%emt 00:00:39]} 7. Be2 {[%clk 01:25:29]}
{[%emt 00:01:37]} Be7 {[%clk 01:29:48]} {[%emt 00:02:21]} 8. O-O {[%clk
01:24:14]} {[%emt 00:01:45]} O-O {[%clk 01:29:29]} {[%emt 00:00:49]} 9. Nbd2
{[%clk 01:24:21]} {[%emt 00:00:24]} a5 {[%clk 01:25:19]} {[%emt 00:04:40]} 10.
a4 {[%clk 01:21:34]} {[%emt 00:03:17]} fxe5 {[%clk 01:14:54]} {[%emt 00:10:55]}
11. fxe5 {[%clk 01:19:11]} {[%emt 00:02:53]} Qe8 {[%clk 01:14:10]} {[%emt
00:01:15]} 12. Ne1 {[%clk 01:13:01]} {[%emt 00:06:37]} Qg6 {[%clk 00:54:25]}
{[%emt 00:20:18]} 13. Bh5 {[%clk 01:00:28]} {[%emt 00:13:02]} Qxh5 {[%clk
00:53:04]} {[%emt 00:01:51]} 14. Qxh5 {[%clk 01:00:55]} {[%emt 00:00:03]} Bg4
{[%clk 00:53:28]} {[%emt 00:00:06]} 15. Qxg4 {[%clk 00:56:36]} {[%emt
00:04:49]} Rxf1+ {[%clk 00:52:49]} {[%emt 00:01:08]} 16. Nxf1 {[%clk 00:55:21]}
{[%emt 00:01:45]} Nxg4 {[%clk 00:53:14]} {[%emt 00:00:06]} 17. Nd3 {[%clk
00:52:21]} {[%emt 00:03:29]} Rf8 {[%clk 00:50:57]} {[%emt 00:02:48]} 18. Bf4
{[%clk 00:47:13]} {[%emt 00:05:38]} Nh6 {[%clk 00:44:48]} {[%emt 00:06:39]} 19.
h3 {[%clk 00:41:01]} {[%emt 00:06:43]} Nf7 {[%clk 00:43:00]} {[%emt 00:02:18]}
20. Nd2 {[%clk 00:38:26]} {[%emt 00:03:04]} b6 {[%clk 00:42:34]} {[%emt
00:00:56]} 21. Rf1 {[%clk 00:34:16]} {[%emt 00:04:40]} Rc8 {[%clk 00:41:29]}
{[%emt 00:01:35]} 22. Kf2 {[%clk 00:33:22]} {[%emt 00:01:23]} Ncd8 {[%clk
00:40:16]} {[%emt 00:01:44]} 23. Ke2 {[%clk 00:32:38]} {[%emt 00:01:13]} Kf8
{[%clk 00:32:38]} {[%emt 00:08:09]} 24. b3 {[%clk 00:31:48]} {[%emt 00:01:21]}
Ke8 {[%clk 00:31:49]} {[%emt 00:01:18]} 25. Be3 {[%clk 00:29:51]} {[%emt
00:02:27]} c5 {[%clk 00:27:19]} {[%emt 00:05:00]} 26. Rc1 {[%clk 00:27:54]}
{[%emt 00:02:27]} cxd4 {[%clk 00:24:12]} {[%emt 00:03:38]} 27. cxd4 {[%clk
00:27:43]} {[%emt 00:00:40]} Rxc1 {[%clk 00:24:23]} {[%emt 00:00:20]} 28. Nxc1
{[%clk 00:28:12]} {[%emt 00:00:02]} Nc6 {[%clk 00:23:46]} {[%emt 00:01:07]} 29.
Nf3 {[%clk 00:26:43]} {[%emt 00:01:58]} Kd7 {[%clk 00:22:22]} {[%emt 00:01:54]}
30. Na2 {[%clk 00:25:12]} {[%emt 00:02:00]} Na7 {[%clk 00:21:24]} {[%emt
00:01:29]} 31. Bd2 {[%clk 00:24:13]} {[%emt 00:01:30]} Bd8 {[%clk 00:20:50]}
{[%emt 00:01:03]} 32. Kd3 {[%clk 00:23:52]} {[%emt 00:00:52]} Nc6 {[%clk
00:19:12]} {[%emt 00:02:08]} 1/2-1/2

[Event "20th Rochefort Chess Festival - Masters"]
[Site "Rochefort, France"]
[Date "2022.02.16"]
[Round "7.3"]
[White "Bauer, Christian"]
[Black "Martin Duque, Jesus"]
[Result "1-0"]
[TimeControl "1h30 + [30'']"]
[WhiteElo "2613"]
[BlackElo "2411"]

1. e4 {[%clk 01:30:58]} {[%emt 00:00:02]} c5 {[%clk 01:29:07]} {[%emt
00:01:39]} 2. Nf3 {[%clk 01:31:17]} {[%emt 00:00:25]} e6 {[%clk 01:29:32]}
{[%emt 00:00:05]} 3. c3 {[%clk 01:31:34]} {[%emt 00:00:13]} Nf6 {[%clk
01:29:52]} {[%emt 00:00:10]} 4. Bd3 {[%clk 01:31:59]} {[%emt 00:00:04]} d5
{[%clk 01:30:12]} {[%emt 00:00:10]} 5. e5 {[%clk 01:32:28]} {[%emt 00:00:02]}
c4 {[%clk 01:30:31]} {[%emt 00:00:11]} 6. Bc2 {[%clk 01:32:49]} {[%emt
00:00:09]} Nfd7 {[%clk 01:30:53]} {[%emt 00:00:08]} 7. d4 {[%clk 01:33:15]}
{[%emt 00:00:04]} cxd3 {[%clk 01:31:16]} {[%emt 00:00:06]} 8. Bxd3 {[%clk
01:33:41]} {[%emt 00:00:05]} Nc6 {[%clk 01:29:56]} {[%emt 00:01:50]} 9. Bf4
{[%clk 01:34:05]} {[%emt 00:00:06]} Qc7 {[%clk 01:25:17]} {[%emt 00:05:08]} 10.
O-O {[%clk 01:33:35]} {[%emt 00:01:00]} f6 {[%clk 01:21:16]} {[%emt 00:04:31]}
11. c4 {[%clk 01:31:37]} {[%emt 00:02:29]} d4 {[%clk 01:10:39]} {[%emt
00:11:06]} 12. Re1 {[%clk 01:28:43]} {[%emt 00:03:24]} Ndxe5 {[%clk 01:07:24]}
{[%emt 00:03:45]} 13. Nxe5 {[%clk 01:28:47]} {[%emt 00:00:26]} fxe5 {[%clk
01:07:23]} {[%emt 00:00:30]} 14. Bg3 {[%clk 01:28:06]} {[%emt 00:01:11]} Bb4
{[%clk 00:56:54]} {[%emt 00:10:59]} 15. Nd2 {[%clk 01:19:39]} {[%emt 00:08:58]}
O-O {[%clk 00:56:43]} {[%emt 00:00:40]} 16. a3 {[%clk 01:19:17]} {[%emt
00:00:53]} Bxd2 {[%clk 00:56:26]} {[%emt 00:00:47]} 17. Qxd2 {[%clk 01:19:45]}
{[%emt 00:00:02]} a5 {[%clk 00:55:40]} {[%emt 00:01:16]} 18. b3 {[%clk
01:03:09]} {[%emt 00:17:06]} Bd7 {[%clk 00:51:11]} {[%emt 00:04:59]} 19. Rab1
{[%clk 01:01:08]} {[%emt 00:02:31]} Rae8 {[%clk 00:48:03]} {[%emt 00:03:37]} 20.
b4 {[%clk 01:01:03]} {[%emt 00:00:36]} axb4 {[%clk 00:47:21]} {[%emt 00:01:11]}
21. axb4 {[%clk 01:01:07]} {[%emt 00:00:25]} Rf5 {[%clk 00:47:38]} {[%emt
00:00:14]} 22. Qe2 {[%clk 00:48:57]} {[%emt 00:12:41]} b6 {[%clk 00:37:37]}
{[%emt 00:10:31]} 23. b5 {[%clk 00:43:40]} {[%emt 00:05:47]} Na5 {[%clk
00:36:34]} {[%emt 00:01:33]} 24. Bxe5 {[%clk 00:44:03]} {[%emt 00:00:07]} Qc5
{[%clk 00:36:50]} {[%emt 00:00:14]} 25. Rbd1 {[%clk 00:38:12]} {[%emt
00:06:21]} Nb3 {[%clk 00:30:30]} {[%emt 00:06:50]} 26. Bc2 {[%clk 00:37:08]}
{[%emt 00:01:34]} Na5 {[%clk 00:13:45]} {[%emt 00:17:15]} 27. Rxd4 {[%clk
00:32:39]} {[%emt 00:04:59]} Bc8 {[%clk 00:14:07]} {[%emt 00:00:07]} 28. Bxf5
{[%clk 00:19:51]} {[%emt 00:13:18]} exf5 {[%clk 00:14:34]} {[%emt 00:00:03]} 29.
Qh5 {[%clk 00:18:51]} {[%emt 00:01:30]} g6 {[%clk 00:12:25]} {[%emt 00:02:40]}
30. Qh6 {[%clk 00:18:44]} {[%emt 00:00:37]} Qe7 {[%clk 00:09:51]} {[%emt
00:03:04]} 31. Rdd1 {[%clk 00:16:03]} {[%emt 00:03:10]} Be6 {[%clk 00:05:32]}
{[%emt 00:04:50]} 32. Bc3 {[%clk 00:15:54]} {[%emt 00:00:39]} 1-0